[Event "*** Titled Tuesday Blitz"]
[Site "Chess.com"]
[Date "2020.04.28"]
[Round "1"]
[White "asimali1977"]
[Black "Two_Towers_Krakow"]
[Result "0-1"]
[WhiteElo "2005"]
[BlackElo "2483"]
[TimeControl "180+1"]
[EndTime "10:08:07 PDT"]
[Termination "Two_Towers_Krakow won by checkmate"]

1. Nf3 {[%clk 0:02:59.9]} 1... Nf6 {[%clk 0:02:59.4]} 2. g3 {[%clk 0:03:00.8]}
2... g6 {[%clk 0:02:59.9]} 3. Bg2 {[%clk 0:03:01.6]} 3... Bg7 {[%clk 0:03:00.6]}
4. O-O {[%clk 0:03:02.2]} 4... O-O {[%clk 0:03:01.2]} 5. d3 {[%clk 0:03:02.6]}
5... c6 {[%clk 0:03:01.6]} 6. Nbd2 {[%clk 0:03:03.3]} 6... d6 {[%clk 0:03:01.1]}
7. e4 {[%clk 0:03:03.4]} 7... e5 {[%clk 0:03:01.3]} 8. Re1 {[%clk 0:03:01.7]}
8... h6 {[%clk 0:03:01.4]} 9. c3 {[%clk 0:03:00.8]} 9... Re8 {[%clk 0:03:01.7]}
10. Qc2 {[%clk 0:02:59.4]} 10... a5 {[%clk 0:03:02]} 11. d4 {[%clk 0:02:57.5]}
11... Nbd7 {[%clk 0:03:01.2]} 12. b3 {[%clk 0:02:52.1]} 12... Qc7 {[%clk
0:03:00.5]} 13. a3 {[%clk 0:02:49.5]} 13... Nb6 {[%clk 0:02:38.4]} 14. Bb2
{[%clk 0:02:46.7]} 14... exd4 {[%clk 0:02:35.4]} 15. cxd4 {[%clk 0:02:46.3]}
15... d5 {[%clk 0:02:35.8]} 16. e5 {[%clk 0:02:43.9]} 16... Bf5 {[%clk
0:02:35.5]} 17. Qc3 {[%clk 0:02:29.6]} 17... Ne4 {[%clk 0:02:33.9]} 18. Nxe4
{[%clk 0:02:27.8]} 18... Bxe4 {[%clk 0:02:31.4]} 19. Rac1 {[%clk 0:02:20.8]}
19... a4 {[%clk 0:02:30]} 20. b4 {[%clk 0:02:06.8]} 20... Nc4 {[%clk 0:02:28.1]}
21. Nd2 {[%clk 0:02:06.4]} 21... Bxg2 {[%clk 0:02:26.9]} 22. Nxc4 {[%clk
0:01:59.1]} 22... dxc4 {[%clk 0:02:26.7]} 23. Kxg2 {[%clk 0:01:58.3]} 23... b5
{[%clk 0:02:26.8]} 24. Rcd1 {[%clk 0:01:50.9]} 24... Rad8 {[%clk 0:02:26]} 25.
Qf3 {[%clk 0:01:49.4]} 25... Qd7 {[%clk 0:02:24.9]} 26. Bc3 {[%clk 0:01:44.6]}
26... Re6 {[%clk 0:02:20.4]} 27. Re4 {[%clk 0:01:38.1]} 27... Qd5 {[%clk
0:02:17.6]} 28. Rf4 {[%clk 0:01:32.3]} 28... Qxf3+ {[%clk 0:02:14.5]} 29. Kxf3
{[%clk 0:01:31.2]} 29... Bxe5 {[%clk 0:02:12.3]} 30. Re4 {[%clk 0:01:21.1]}
30... Bg7 {[%clk 0:02:06.8]} 31. Rxe6 {[%clk 0:01:15.5]} 31... fxe6 {[%clk
0:02:07.7]} 32. Ke4 {[%clk 0:01:15.2]} 32... Kf7 {[%clk 0:02:05.8]} 33. f4
{[%clk 0:01:14.3]} 33... Rd5 {[%clk 0:02:04.3]} 34. g4 {[%clk 0:01:11.3]} 34...
h5 {[%clk 0:02:03.8]} 35. h3 {[%clk 0:01:11.1]} 35... Bf6 {[%clk 0:02:01.4]} 36.
Rf1 {[%clk 0:01:10.1]} 36... Ke7 {[%clk 0:01:52.8]} 37. f5 {[%clk 0:01:02.9]}
37... exf5+ {[%clk 0:01:48.7]} 38. gxf5 {[%clk 0:01:02.5]} 38... gxf5+ {[%clk
0:01:39]} 39. Rxf5 {[%clk 0:01:01.6]} 39... Rxf5 {[%clk 0:01:27.4]} 40. Kxf5
{[%clk 0:01:01.3]} 40... Kf7 {[%clk 0:01:25.4]} 41. Ke4 {[%clk 0:00:50.1]} 41...
Ke6 {[%clk 0:01:23.9]} 42. Bd2 {[%clk 0:00:44]} 42... Bh4 {[%clk 0:01:19.6]} 43.
Bc1 {[%clk 0:00:39.9]} 43... Be1 {[%clk 0:01:17.9]} 44. Be3 {[%clk 0:00:37.6]}
44... Bc3 {[%clk 0:01:17.6]} 45. Bc1 {[%clk 0:00:36.3]} 45... Be1 {[%clk
0:01:15]} 46. Be3 {[%clk 0:00:34.6]} 46... c3 {[%clk 0:01:14.1]} 47. Kd3 {[%clk
0:00:32]} 47... Kd5 {[%clk 0:01:13.7]} 48. Bc1 {[%clk 0:00:29.8]} 48... Bd2
{[%clk 0:01:14]} 49. Bxd2 {[%clk 0:00:29.1]} 49... cxd2 {[%clk 0:01:14.9]} 50.
Kxd2 {[%clk 0:00:29.2]} 50... Kxd4 {[%clk 0:01:15.3]} 51. h4 {[%clk 0:00:27.1]}
51... Ke4 {[%clk 0:01:10.9]} 52. Ke2 {[%clk 0:00:26.8]} 52... Kf4 {[%clk
0:01:10.3]} 53. Kd3 {[%clk 0:00:21.5]} 53... Kg4 {[%clk 0:01:01.3]} 54. Kd4
{[%clk 0:00:21.2]} 54... Kxh4 {[%clk 0:01:01.4]} 55. Kc5 {[%clk 0:00:21.6]}
55... Kg5 {[%clk 0:01:00.8]} 56. Kxc6 {[%clk 0:00:21.5]} 56... h4 {[%clk
0:01:01.5]} 57. Kxb5 {[%clk 0:00:21.6]} 57... h3 {[%clk 0:01:02.1]} 58. Ka6
{[%clk 0:00:19.3]} 58... h2 {[%clk 0:01:03]} 59. b5 {[%clk 0:00:19.5]} 59...
h1=Q {[%clk 0:01:03.2]} 60. b6 {[%clk 0:00:19.2]} 60... Qa8+ {[%clk 0:01:02.5]}
61. Kb5 {[%clk 0:00:18.1]} 61... Kf5 {[%clk 0:01:02]} 62. Kc5 {[%clk 0:00:18]}
62... Ke5 {[%clk 0:01:01]} 63. Kb4 {[%clk 0:00:17.5]} 63... Kd5 {[%clk
0:00:58.9]} 64. Kb5 {[%clk 0:00:17.2]} 64... Qb7 {[%clk 0:00:58.2]} 65. Kxa4
{[%clk 0:00:15.9]} 65... Kc5 {[%clk 0:00:55.2]} 66. Kb3 {[%clk 0:00:12.9]} 66...
Qxb6+ {[%clk 0:00:55.2]} 67. Ka2 {[%clk 0:00:12.9]} 67... Kc4 {[%clk 0:00:54.5]}
68. Ka1 {[%clk 0:00:11.7]} 68... Kc3 {[%clk 0:00:55]} 69. Ka2 {[%clk 0:00:10]}
69... Qb2# {[%clk 0:00:55.9]} 0-1

[Event "*** Titled Tuesday Blitz"]
[Site "Chess.com"]
[Date "2020.04.28"]
[Round "1"]
[White "northridgehawk"]
[Black "Chepaschess"]
[Result "0-1"]
[WhiteElo "2304"]
[BlackElo "2630"]
[TimeControl "180+1"]
[EndTime "10:08:08 PDT"]
[Termination "Chepaschess won by resignation"]

1. e4 {[%clk 0:03:00.9]} 1... c5 {[%clk 0:02:59.5]} 2. Nf3 {[%clk 0:02:56.9]}
2... d6 {[%clk 0:02:59.2]} 3. d4 {[%clk 0:02:57.3]} 3... cxd4 {[%clk 0:02:58.8]}
4. Nxd4 {[%clk 0:02:58.2]} 4... Nf6 {[%clk 0:02:58.3]} 5. Nc3 {[%clk 0:02:59]}
5... a6 {[%clk 0:02:58.1]} 6. h3 {[%clk 0:02:59.6]} 6... e5 {[%clk 0:02:57.8]}
7. Nde2 {[%clk 0:02:59.7]} 7... h5 {[%clk 0:02:57]} 8. g3 {[%clk 0:02:57.6]}
8... Be6 {[%clk 0:02:52.9]} 9. Bg2 {[%clk 0:02:55.8]} 9... b5 {[%clk 0:02:53]}
10. O-O {[%clk 0:02:55.4]} 10... Nbd7 {[%clk 0:02:51.6]} 11. Be3 {[%clk
0:02:53.5]} 11... Be7 {[%clk 0:02:48.9]} 12. Nd5 {[%clk 0:02:50.6]} 12... Nxd5
{[%clk 0:02:45.5]} 13. exd5 {[%clk 0:02:51.5]} 13... Bf5 {[%clk 0:02:46.1]} 14.
c3 {[%clk 0:02:44.6]} 14... O-O {[%clk 0:02:33.3]} 15. f4 {[%clk 0:02:40.8]}
15... Bh7 {[%clk 0:02:31.1]} 16. f5 {[%clk 0:02:34.9]} 16... Bg5 {[%clk
0:02:28.8]} 17. Qd2 {[%clk 0:02:30]} 17... Bxe3+ {[%clk 0:02:18.4]} 18. Qxe3
{[%clk 0:02:30.9]} 18... Qb6 {[%clk 0:02:11.1]} 19. Qxb6 {[%clk 0:02:14.7]}
19... Nxb6 {[%clk 0:02:12]} 20. g4 {[%clk 0:02:15.5]} 20... hxg4 {[%clk
0:01:58.9]} 21. hxg4 {[%clk 0:02:16.4]} 21... Nc4 {[%clk 0:01:59.3]} 22. g5
{[%clk 0:02:03.5]} 22... Ne3 {[%clk 0:01:55.6]} 23. Be4 {[%clk 0:01:59.5]} 23...
Nxf1 {[%clk 0:01:54.8]} 24. Rxf1 {[%clk 0:02:00.4]} 24... g6 {[%clk 0:01:28.6]}
25. f6 {[%clk 0:01:56.2]} 25... Rfc8 {[%clk 0:01:28.7]} 26. b3 {[%clk
0:01:53.1]} 26... a5 {[%clk 0:01:26.3]} 27. Bd3 {[%clk 0:01:47.3]} 27... Rc5
{[%clk 0:01:25.1]} 28. Be4 {[%clk 0:01:42.8]} 28... Rac8 {[%clk 0:01:23.2]} 29.
Rc1 {[%clk 0:01:36.5]} 29... Kf8 {[%clk 0:01:20.2]} 30. Kf2 {[%clk 0:01:36.3]}
30... Ke8 {[%clk 0:01:20.7]} 31. Ke3 {[%clk 0:01:31.9]} 31... Kd7 {[%clk
0:01:19.2]} 32. Kd3 {[%clk 0:01:27.5]} 32... Kc7 {[%clk 0:01:13.8]} 33. Rh1
{[%clk 0:01:25.2]} 33... Bg8 {[%clk 0:01:14]} 34. Rh3 {[%clk 0:01:05.9]} 34...
Kb6 {[%clk 0:01:11.8]} 35. Re3 {[%clk 0:00:53.8]} 35... a4 {[%clk 0:01:11.8]}
36. Kc2 {[%clk 0:00:46.4]} 36... axb3+ {[%clk 0:01:07.5]} 37. axb3 {[%clk
0:00:44.4]} 37... b4 {[%clk 0:01:05.1]} 38. c4 {[%clk 0:00:44.2]} 38... Ra5
{[%clk 0:01:05.2]} 39. Kb2 {[%clk 0:00:43.2]} 39... Rca8 {[%clk 0:01:04.8]} 40.
Nc1 {[%clk 0:00:42.7]} 40... Ra1 {[%clk 0:01:00.1]} 41. Bb1 {[%clk 0:00:34.1]}
41... R1a7 {[%clk 0:00:39.7]} 42. Nd3 {[%clk 0:00:29.7]} 42... Ka5 {[%clk
0:00:40.1]} 43. Bc2 {[%clk 0:00:29.6]} 43... Re8 {[%clk 0:00:38.6]} 44. Re1
{[%clk 0:00:28.4]} 44... e4 {[%clk 0:00:37.8]} 45. Ra1+ {[%clk 0:00:28.2]} 45...
Kb6 {[%clk 0:00:38]} 46. Rxa7 {[%clk 0:00:19.2]} 46... Kxa7 {[%clk 0:00:38.3]}
47. Nxb4 {[%clk 0:00:19]} 47... e3 {[%clk 0:00:36.3]} 48. Nd3 {[%clk 0:00:18.2]}
48... e2 {[%clk 0:00:34.6]} 49. Ne1 {[%clk 0:00:18.4]} 49... Re5 {[%clk
0:00:34.8]} 50. Kc3 {[%clk 0:00:05.4]} 50... Rxg5 {[%clk 0:00:34.9]} 51. Bd3
{[%clk 0:00:06.3]} 51... Rg1 {[%clk 0:00:26.6]} 52. Kd2 {[%clk 0:00:06.5]} 52...
Rf1 {[%clk 0:00:27.1]} 53. Bxe2 {[%clk 0:00:06.8]} 53... Rxf6 {[%clk 0:00:27.6]}
54. b4 {[%clk 0:00:07.4]} 54... Rf4 {[%clk 0:00:26.1]} 55. Nd3 {[%clk
0:00:06.9]} 55... Rxc4 {[%clk 0:00:25.3]} 56. Ne5 {[%clk 0:00:06.9]} 56... Rd4+
{[%clk 0:00:24.9]} 57. Ke3 {[%clk 0:00:07.3]} 57... dxe5 {[%clk 0:00:25.1]} 0-1

[Event "*** Titled Tuesday Blitz"]
[Site "Chess.com"]
[Date "2020.04.28"]
[Round "1"]
[White "jguerramzllo"]
[Black "Lysiak_Poltorak"]
[Result "1-0"]
[WhiteElo "2624"]
[BlackElo "2300"]
[TimeControl "180+1"]
[EndTime "10:08:08 PDT"]
[Termination "jguerramzllo won by resignation"]

1. e4 {[%clk 0:03:00.9]} 1... c5 {[%clk 0:02:59.4]} 2. Nf3 {[%clk 0:02:58.7]}
2... d6 {[%clk 0:02:59.6]} 3. d4 {[%clk 0:02:58.2]} 3... cxd4 {[%clk 0:03:00.5]}
4. Nxd4 {[%clk 0:02:58.6]} 4... Nf6 {[%clk 0:03:00.5]} 5. Nc3 {[%clk 0:02:58.7]}
5... g6 {[%clk 0:03:00.9]} 6. Be3 {[%clk 0:02:57.2]} 6... Bg7 {[%clk 0:03:01.1]}
7. f3 {[%clk 0:02:56.4]} 7... O-O {[%clk 0:03:01.4]} 8. Qd2 {[%clk 0:02:56.4]}
8... Nc6 {[%clk 0:03:01.6]} 9. g4 {[%clk 0:02:56.6]} 9... Be6 {[%clk 0:03:00.2]}
10. O-O-O {[%clk 0:02:53.5]} 10... Qa5 {[%clk 0:02:58.9]} 11. Kb1 {[%clk
0:02:50.5]} 11... Rac8 {[%clk 0:02:57]} 12. a3 {[%clk 0:02:42.7]} 12... Nxd4
{[%clk 0:02:15.6]} 13. Bxd4 {[%clk 0:02:42.1]} 13... Rfd8 {[%clk 0:02:13.7]} 14.
g5 {[%clk 0:02:17.8]} 14... Nd7 {[%clk 0:02:13]} 15. Nd5 {[%clk 0:02:13.6]}
15... Qxd2 {[%clk 0:02:09.8]} 16. Rxd2 {[%clk 0:02:13.8]} 16... Bxd5 {[%clk
0:01:56.4]} 17. exd5 {[%clk 0:02:12.8]} 17... Ne5 {[%clk 0:01:51.2]} 18. Be2
{[%clk 0:02:05.1]} 18... Nc4 {[%clk 0:01:50.3]} 19. Bxc4 {[%clk 0:01:56.9]}
19... Rxc4 {[%clk 0:01:51.2]} 20. Bxa7 {[%clk 0:01:57.1]} 20... b5 {[%clk
0:01:47.1]} 21. Re1 {[%clk 0:01:54.6]} 21... Be5 {[%clk 0:01:38]} 22. Re4 {[%clk
0:01:44.7]} 22... Rdc8 {[%clk 0:01:30.4]} 23. Bd4 {[%clk 0:01:42.3]} 23... f5
{[%clk 0:01:01.3]} 24. gxf6 {[%clk 0:01:25]} 24... exf6 {[%clk 0:01:02.2]} 25.
Bxe5 {[%clk 0:01:12.9]} 25... fxe5 {[%clk 0:01:03.1]} 26. c3 {[%clk 0:01:06.4]}
26... Rf8 {[%clk 0:00:41.6]} 27. Rxc4 {[%clk 0:01:03.8]} 27... bxc4 {[%clk
0:00:42.5]} 28. Re2 {[%clk 0:01:04.3]} 28... Rxf3 {[%clk 0:00:39.8]} 29. Re4
{[%clk 0:01:04.4]} 29... Rf4 {[%clk 0:00:39]} 30. Re2 {[%clk 0:00:44.4]} 30...
Kf7 {[%clk 0:00:35.4]} 31. b3 {[%clk 0:00:43.9]} 31... cxb3 {[%clk 0:00:33.7]}
32. Kb2 {[%clk 0:00:44.5]} 32... e4 {[%clk 0:00:32.5]} 33. Kxb3 {[%clk
0:00:44.2]} 33... Kf6 {[%clk 0:00:32.4]} 34. a4 {[%clk 0:00:42.1]} 34... Ke5
{[%clk 0:00:32.6]} 35. c4 {[%clk 0:00:39.8]} 35... Kd4 {[%clk 0:00:30.7]} 36. a5
{[%clk 0:00:38.3]} 36... e3 {[%clk 0:00:27.1]} 37. a6 {[%clk 0:00:37.7]} 37...
Rf8 {[%clk 0:00:20.6]} 38. Kb4 {[%clk 0:00:33.7]} 38... Kd3 {[%clk 0:00:20.3]}
39. Re1 {[%clk 0:00:31.7]} 39... Rb8+ {[%clk 0:00:20.5]} 40. Ka5 {[%clk
0:00:31.1]} 40... Kd2 {[%clk 0:00:18.9]} 41. Ra1 {[%clk 0:00:30.1]} 41... e2
{[%clk 0:00:18.8]} 42. a7 {[%clk 0:00:29.9]} 42... Rc8 {[%clk 0:00:18.3]} 43.
Kb6 {[%clk 0:00:27.5]} 43... e1=Q {[%clk 0:00:15.4]} 44. Rxe1 {[%clk 0:00:27.5]}
44... Kxe1 {[%clk 0:00:16]} 45. Kb7 {[%clk 0:00:21.9]} 45... Re8 {[%clk
0:00:12.6]} 46. a8=Q {[%clk 0:00:20.8]} 46... Rxa8 {[%clk 0:00:12.9]} 47. Kxa8
{[%clk 0:00:21.7]} 47... Kf2 {[%clk 0:00:13]} 48. c5 {[%clk 0:00:17.2]} 48...
dxc5 {[%clk 0:00:13.9]} 49. d6 {[%clk 0:00:17.4]} 49... Kg2 {[%clk 0:00:13]} 50.
d7 {[%clk 0:00:17.2]} 50... Kxh2 {[%clk 0:00:13.2]} 51. d8=Q {[%clk 0:00:17.1]}
51... h5 {[%clk 0:00:13.1]} 52. Qh4+ {[%clk 0:00:15.1]} 52... Kg2 {[%clk
0:00:13.3]} 53. Qg5+ {[%clk 0:00:15.2]} 53... Kf3 {[%clk 0:00:07.8]} 54. Qxg6
{[%clk 0:00:13.3]} 54... h4 {[%clk 0:00:08.2]} 55. Qc6+ {[%clk 0:00:12.3]} 55...
Kf2 {[%clk 0:00:06.9]} 56. Qxc5+ {[%clk 0:00:12]} 56... Kg2 {[%clk 0:00:06.1]}
57. Qg5+ {[%clk 0:00:11.5]} 1-0

[Event "*** Titled Tuesday Blitz"]
[Site "Chess.com"]
[Date "2020.04.28"]
[Round "1"]
[White "atalz0"]
[Black "MikaelyanArman"]
[Result "1-0"]
[WhiteElo "2428"]
[BlackElo "2752"]
[TimeControl "180+1"]
[EndTime "10:08:10 PDT"]
[Termination "atalz0 won on time"]

1. d4 {[%clk 0:02:57.1]} 1... d5 {[%clk 0:02:59.2]} 2. c4 {[%clk 0:02:57.2]}
2... c6 {[%clk 0:02:59.4]} 3. cxd5 {[%clk 0:02:57.4]} 3... cxd5 {[%clk
0:03:00.3]} 4. Bf4 {[%clk 0:02:57.9]} 4... Nf6 {[%clk 0:03:00.1]} 5. e3 {[%clk
0:02:58.3]} 5... Nc6 {[%clk 0:03:00.3]} 6. Nc3 {[%clk 0:02:58.9]} 6... Bf5
{[%clk 0:03:00.5]} 7. Qb3 {[%clk 0:02:55.9]} 7... Na5 {[%clk 0:02:59]} 8. Bb5+
{[%clk 0:02:49.6]} 8... Bd7 {[%clk 0:02:55.9]} 9. Qa4 {[%clk 0:02:47.7]} 9... e6
{[%clk 0:02:42.3]} 10. Nf3 {[%clk 0:02:38.6]} 10... a6 {[%clk 0:02:36.4]} 11.
Bxd7+ {[%clk 0:02:37]} 11... Nxd7 {[%clk 0:02:37.3]} 12. O-O {[%clk 0:02:22.4]}
12... Be7 {[%clk 0:02:33.7]} 13. Rfc1 {[%clk 0:02:15.8]} 13... b5 {[%clk
0:02:30.4]} 14. Qd1 {[%clk 0:02:12]} 14... Rc8 {[%clk 0:02:21.8]} 15. a4 {[%clk
0:02:10.3]} 15... b4 {[%clk 0:02:19.7]} 16. Ne2 {[%clk 0:02:07.5]} 16... Nc6
{[%clk 0:01:56.6]} 17. Qd3 {[%clk 0:02:00]} 17... Qb6 {[%clk 0:01:54.1]} 18. a5
{[%clk 0:01:55.8]} 18... Qb7 {[%clk 0:01:50.9]} 19. Qb3 {[%clk 0:01:35.2]} 19...
O-O {[%clk 0:01:47.7]} 20. Qa4 {[%clk 0:01:34.7]} 20... Nf6 {[%clk 0:01:41.2]}
21. h3 {[%clk 0:01:30.7]} 21... Ne4 {[%clk 0:01:40.1]} 22. Ng3 {[%clk
0:01:23.2]} 22... Nd6 {[%clk 0:01:25.9]} 23. b3 {[%clk 0:01:02.5]} 23... Nb5
{[%clk 0:01:24]} 24. Ne2 {[%clk 0:01:02]} 24... Bd8 {[%clk 0:01:10.8]} 25. Ne5
{[%clk 0:00:54.1]} 25... Nxe5 {[%clk 0:01:07.2]} 26. Bxe5 {[%clk 0:00:50.1]}
26... Be7 {[%clk 0:01:06]} 27. Rxc8 {[%clk 0:00:33.9]} 27... Rxc8 {[%clk
0:01:06.9]} 28. Rc1 {[%clk 0:00:33.9]} 28... Rxc1+ {[%clk 0:01:04.7]} 29. Nxc1
{[%clk 0:00:34.8]} 29... f6 {[%clk 0:00:59.6]} 30. Bg3 {[%clk 0:00:33.6]} 30...
Qc6 {[%clk 0:00:57.9]} 31. Qa1 {[%clk 0:00:32]} 31... Qc2 {[%clk 0:00:56.2]} 32.
Kh2 {[%clk 0:00:27.1]} 32... h6 {[%clk 0:00:52]} 33. h4 {[%clk 0:00:24.2]} 33...
Kf7 {[%clk 0:00:44.2]} 34. f3 {[%clk 0:00:18.6]} 34... Nc3 {[%clk 0:00:43.3]}
35. Kh3 {[%clk 0:00:13.2]} 35... h5 {[%clk 0:00:39.4]} 36. Kh2 {[%clk
0:00:12.7]} 36... Nb5 {[%clk 0:00:24.1]} 37. Kh3 {[%clk 0:00:10.4]} 37... Na3
{[%clk 0:00:22.5]} 38. Kh2 {[%clk 0:00:08.6]} 38... Bd8 {[%clk 0:00:20.6]} 39.
e4 {[%clk 0:00:08.1]} 39... dxe4 {[%clk 0:00:19.1]} 40. d5 {[%clk 0:00:06.3]}
40... exd5 {[%clk 0:00:18.6]} 41. Qd4 {[%clk 0:00:03.4]} 41... Qd3 {[%clk
0:00:15.6]} 42. Qa7+ {[%clk 0:00:03.2]} 42... Be7 {[%clk 0:00:15]} 43. Nxd3
{[%clk 0:00:03.5]} 43... exd3 {[%clk 0:00:15.9]} 44. Qd4 {[%clk 0:00:03.2]}
44... Nb5 {[%clk 0:00:14.4]} 45. Qxd5+ {[%clk 0:00:03.6]} 45... Kf8 {[%clk
0:00:13.8]} 46. Qxd3 {[%clk 0:00:04.5]} 46... Nc3 {[%clk 0:00:14.3]} 47. Qc4
{[%clk 0:00:04.9]} 47... Nb5 {[%clk 0:00:13.9]} 48. Qc8+ {[%clk 0:00:04.9]}
48... Kf7 {[%clk 0:00:14.3]} 49. Qxa6 {[%clk 0:00:05.8]} 49... Na3 {[%clk
0:00:14.5]} 50. Qb6 {[%clk 0:00:05.6]} 50... Nc2 {[%clk 0:00:14.4]} 51. a6
{[%clk 0:00:05.9]} 51... Na3 {[%clk 0:00:14.5]} 52. a7 {[%clk 0:00:06.1]} 52...
Nc2 {[%clk 0:00:15.1]} 53. a8=Q {[%clk 0:00:06.4]} 1-0

[Event "*** Titled Tuesday Blitz"]
[Site "Chess.com"]
[Date "2020.04.28"]
[Round "1"]
[White "IMDT02"]
[Black "GMNeiksans"]
[Result "1-0"]
[WhiteElo "2449"]
[BlackElo "2818"]
[TimeControl "180+1"]
[EndTime "10:08:12 PDT"]
[Termination "IMDT02 won by checkmate"]

1. d4 {[%clk 0:02:59.4]} 1... Nf6 {[%clk 0:02:55.8]} 2. c4 {[%clk 0:02:58.6]}
2... e6 {[%clk 0:02:55.1]} 3. Nc3 {[%clk 0:02:55.5]} 3... Bb4 {[%clk 0:02:53.6]}
4. e3 {[%clk 0:02:55.5]} 4... O-O {[%clk 0:02:53.1]} 5. Ne2 {[%clk 0:02:55]}
5... Re8 {[%clk 0:02:43.2]} 6. a3 {[%clk 0:02:54.2]} 6... Bf8 {[%clk 0:02:42.5]}
7. d5 {[%clk 0:02:54.3]} 7... a5 {[%clk 0:02:37.9]} 8. g3 {[%clk 0:02:54]} 8...
Na6 {[%clk 0:02:34.5]} 9. Bg2 {[%clk 0:02:53.5]} 9... Nc5 {[%clk 0:02:33.2]} 10.
b3 {[%clk 0:02:53.4]} 10... exd5 {[%clk 0:02:26.3]} 11. cxd5 {[%clk 0:02:52.8]}
11... b6 {[%clk 0:02:15.5]} 12. O-O {[%clk 0:02:52.5]} 12... g6 {[%clk
0:02:07.7]} 13. Qc2 {[%clk 0:02:29.3]} 13... Bg7 {[%clk 0:01:58.1]} 14. Rd1
{[%clk 0:02:28.4]} 14... Ba6 {[%clk 0:01:44.5]} 15. Bb2 {[%clk 0:02:28.3]} 15...
Nb7 {[%clk 0:01:15.9]} 16. Rac1 {[%clk 0:01:51.3]} 16... Nd6 {[%clk 0:01:12.6]}
17. a4 {[%clk 0:01:44.6]} 17... Nb7 {[%clk 0:01:07]} 18. Nd4 {[%clk 0:01:35.7]}
18... Nc5 {[%clk 0:01:05]} 19. Ndb5 {[%clk 0:01:32.6]} 19... d6 {[%clk
0:00:56.3]} 20. Ne2 {[%clk 0:01:10.6]} 20... Bxb5 {[%clk 0:00:49.8]} 21. axb5
{[%clk 0:01:10.6]} 21... Ng4 {[%clk 0:00:46.5]} 22. Bxg7 {[%clk 0:01:08]} 22...
Kxg7 {[%clk 0:00:46.6]} 23. Nd4 {[%clk 0:01:03.8]} 23... Qf6 {[%clk 0:00:43.6]}
24. h3 {[%clk 0:00:40.7]} 24... Ne5 {[%clk 0:00:43.2]} 25. f4 {[%clk 0:00:40.9]}
25... Ned7 {[%clk 0:00:42]} 26. e4 {[%clk 0:00:41.4]} 26... h5 {[%clk 0:00:33]}
27. h4 {[%clk 0:00:41.1]} 27... Kg8 {[%clk 0:00:30]} 28. Nc6 {[%clk 0:00:41.3]}
28... Qg7 {[%clk 0:00:29.8]} 29. Re1 {[%clk 0:00:41.4]} 29... Nf6 {[%clk
0:00:26.6]} 30. Bf3 {[%clk 0:00:37.2]} 30... Ng4 {[%clk 0:00:18.5]} 31. Bxg4
{[%clk 0:00:33]} 31... hxg4 {[%clk 0:00:19.4]} 32. e5 {[%clk 0:00:32.8]} 32...
dxe5 {[%clk 0:00:16.1]} 33. fxe5 {[%clk 0:00:33.2]} 33... g5 {[%clk 0:00:11.1]}
34. h5 {[%clk 0:00:26.4]} 34... Qh6 {[%clk 0:00:10.6]} 35. Qf5 {[%clk
0:00:22.9]} 35... Qxh5 {[%clk 0:00:10.7]} 36. e6 {[%clk 0:00:23.3]} 36... Qg6
{[%clk 0:00:08]} 37. exf7+ {[%clk 0:00:19.8]} 37... Qxf7 {[%clk 0:00:07.8]} 38.
Qxg5+ {[%clk 0:00:20.2]} 38... Qg7 {[%clk 0:00:05.5]} 39. Ne7+ {[%clk
0:00:18.2]} 39... Kh7 {[%clk 0:00:03.6]} 40. Qh5+ {[%clk 0:00:13.5]} 40... Qh6
{[%clk 0:00:04]} 41. Qf7+ {[%clk 0:00:10.9]} 41... Qg7 {[%clk 0:00:04.2]} 42.
Qf5+ {[%clk 0:00:07.9]} 42... Kh8 {[%clk 0:00:04.4]} 43. Ng6+ {[%clk 0:00:08]}
43... Kg8 {[%clk 0:00:04.7]} 44. Rf1 {[%clk 0:00:07.2]} 44... Qd4+ {[%clk
0:00:04]} 45. Kh2 {[%clk 0:00:06.1]} 45... Qd2+ {[%clk 0:00:03.4]} 46. Kh1
{[%clk 0:00:05.8]} 46... Qh6+ {[%clk 0:00:03.4]} 47. Kg1 {[%clk 0:00:05.5]}
47... Qe3+ {[%clk 0:00:03.3]} 48. Kh1 {[%clk 0:00:05.9]} 48... Qh6+ {[%clk
0:00:03.4]} 49. Nh4 {[%clk 0:00:06.2]} 49... Rf8 {[%clk 0:00:03.1]} 50. Qxg4+
{[%clk 0:00:06.3]} 50... Kh7 {[%clk 0:00:03.6]} 51. Rce1 {[%clk 0:00:06.6]}
51... Rxf1+ {[%clk 0:00:02.8]} 52. Rxf1 {[%clk 0:00:07.5]} 52... Rf8 {[%clk
0:00:01.5]} 53. Rxf8 {[%clk 0:00:07.3]} 53... Qxf8 {[%clk 0:00:01.9]} 54. Qg6+
{[%clk 0:00:07.9]} 54... Kh8 {[%clk 0:00:02.4]} 55. Nf5 {[%clk 0:00:08.8]} 55...
Qg8 {[%clk 0:00:01.9]} 56. Qf6+ {[%clk 0:00:07.5]} 56... Kh7 {[%clk 0:00:02.4]}
57. Qh6# {[%clk 0:00:07.9]} 1-0